bitfinex/quotes_BTCUSD_20241018
["timestamp","ask_amount","ask_price","bid_price","bid_amount"]
[1729247895790,0.000328,67915.0,67914.0,0.44240141]
[1729247897951,0.098528,67930.0,67914.0,0.44240141]
[1729247897952,0.094684,67930.0,67922.0,0.147226]
[1729247898172,0.094684,67930.0,67928.0,0.11018199]
[1729247898436,0.241894,67930.0,67929.0,0.23710676]
[1729247899312,0.241894,67930.0,67929.0,0.16037017]
[1729247899519,0.095684,67930.0,67929.0,0.16037017]
[1729247899999,0.094684,67930.0,67929.0,0.2370886]
[1729247900656,0.242894,67930.0,67929.0,0.2380886]
[1729247901524,0.242894,67930.0,67929.0,0.23908235]
[1729247902161,0.243722,67930.0,67929.0,0.23908235]
[1729247902387,0.096512,67930.0,67929.0,0.23908235]
[1729247903263,0.001828,67930.0,67929.0,0.2440021]
[1729247903508,0.001828,67930.0,67929.0,0.32449873]
[1729247904162,0.001828,67930.0,67929.0,0.3130909]
[1729247904834,0.001828,67930.0,67929.0,0.3120909]
[1729247905045,0.001828,67930.0,67929.0,0.3190909]
[1729247905489,0.001828,67930.0,67929.0,0.3180909]
[1729247905490,0.000828,67930.0,67929.0,0.3180909]
[1729247905680,0.000828,67930.0,67929.0,0.3230909]
[1729247906399,0.000828,67930.0,67929.0,0.3180909]
[1729247906592,0.000828,67930.0,67929.0,0.3230909]
[1729247915120,0.000828,67930.0,67929.0,0.3247469]
[1729247915564,0.000828,67930.0,67929.0,0.43463148]
[1729247915800,0.000828,67930.0,67929.0,0.64300642]
[1729247916024,0.000828,67930.0,67929.0,0.66330827]
[1729247916494,0.000828,67930.0,67929.0,0.54854875]
[1729247916956,0.000828,67930.0,67929.0,1.04854875]
[1729247917175,0.000828,67930.0,67929.0,1.05054875]
[1729247917394,0.000828,67930.0,67929.0,1.24307428]
[1729247918036,0.000828,67930.0,67929.0,1.04354875]
[1729247918490,0.000828,67930.0,67929.0,1.24500835]
[1729247918693,0.000828,67930.0,67929.0,1.25900835]
[1729247918961,0.000828,67930.0,67929.0,1.26100835]
[1729247919420,0.000828,67930.0,67929.0,1.06654875]
[1729247919881,0.000828,67930.0,67929.0,1.06454875]
[1729247920373,0.000828,67930.0,67929.0,1.31454875]
[1729247926136,0.000828,67930.0,67929.0,1.31654875]
[1729247926524,0.000828,67930.0,67929.0,1.44805656]
[1729247926750,0.000828,67930.0,67929.0,1.31454875]
[1729247926970,0.000828,67930.0,67929.0,1.4460563]
[1729247927188,0.000828,67930.0,67929.0,1.44606019]
[1729247927411,0.000828,67930.0,67929.0,1.44605212]
[1729247927633,0.000828,67930.0,67929.0,1.50493212]
[1729247928518,0.000828,67930.0,67929.0,1.50693212]
[1729247930070,0.000828,67930.0,67929.0,1.50493212]
[1729247930975,0.000828,67930.0,67929.0,1.50490925]
[1729247934022,0.000828,67930.0,67929.0,1.50690925]
[1729247934457,0.000828,67930.0,67929.0,1.37542875]
[1729247935761,0.000828,67930.0,67929.0,1.37342875]
[1729247937799,0.000828,67930.0,67929.0,1.5049762]
[1729247938010,0.000828,67930.0,67929.0,1.27982875]
[1729247939447,0.000828,67930.0,67929.0,1.4113762]
[1729247940301,0.000828,67930.0,67929.0,1.27982875]
[1729247940555,0.000828,67930.0,67929.0,1.41140882]
[1729247940943,0.000828,67930.0,67929.0,0.57450882]
[1729247941177,0.000828,67930.0,67929.0,0.34604875]
[1729247941383,0.000828,67930.0,67929.0,0.20383675]
[1729247941792,0.11558752,67930.0,67929.0,0.20383675]
[1729247942004,0.000828,67930.0,67929.0,0.26966686]
[1729247942208,0.000828,67930.0,67929.0,0.20383675]
[1729247942426,0.000828,67930.0,67929.0,0.35104875]
[1729247943704,0.000828,67930.0,67929.0,0.03995785]
[1729247943705,0.423138,67930.0,67929.0,0.03995785]
[1729247944583,0.175928,67930.0,67929.0,0.01195785]
[1729247944796,0.175928,67930.0,67929.0,0.02595785]
[1729247944797,0.29068752,67930.0,67929.0,0.02595785]
[1729247946261,0.43789752,67930.0,67929.0,0.02595785]
[1729247946467,0.43789752,67930.0,67929.0,0.01195785]
[1729247946905,0.323138,67930.0,67929.0,0.01695785]
[1729247947152,0.175928,67930.0,67929.0,0.177917]
[1729247947405,0.175928,67930.0,67929.0,0.182917]
[1729247951017,0.094328,67930.0,67929.0,0.182917]
[1729247951240,0.000828,67930.0,67929.0,0.182917]
[1729247951453,0.000828,67930.0,67929.0,0.330129]
[1729247951664,0.000828,67930.0,67929.0,0.182917]
[1729247958036,0.000828,67930.0,67929.0,0.33504875]
[1729247958246,0.000828,67930.0,67929.0,0.52308763]
[1729247958497,0.000828,67930.0,67929.0,0.54503392]
[1729247958703,0.000828,67930.0,67929.0,0.55639735]
[1729247959141,0.000828,67930.0,67929.0,0.55139735]
[1729247959371,0.000828,67930.0,67929.0,0.45819735]
[1729247959800,0.000828,67930.0,67929.0,0.45219735]
[1729247960212,0.000828,67930.0,67929.0,0.45819735]
[1729247960440,0.000828,67930.0,67929.0,0.43983392]
[1729247960675,0.000828,67930.0,67929.0,0.44783392]
[1729247963555,0.000828,67930.0,67929.0,0.36004875]
[1729247967293,0.000828,67930.0,67929.0,0.37142554]
[1729247967528,0.000828,67930.0,67929.0,0.481157]
[1729247968368,0.000828,67930.0,67929.0,0.46978021]
[1729247968570,0.000828,67930.0,67929.0,0.48115896]
[1729247970273,0.000828,67930.0,67929.0,0.3714275]
[1729247970476,0.000828,67930.0,67929.0,0.4847275]
[1729247970695,0.000828,67930.0,67929.0,0.5623275]
[1729247970907,0.31012817,67951.0,67929.0,0.5623275]
[1729247970908,0.21942817,67951.0,67945.0,0.18509675]
[1729247971131,0.21942817,67951.0,67945.0,0.57275869]
[1729247971331,0.000828,67954.0,67945.0,0.55843673]
[1729247971985,0.000828,67954.0,67945.0,0.44881542]
[1729247972411,0.000828,67954.0,67945.0,0.55840188]
[1729247972612,0.000828,67954.0,67945.0,0.57240188]
[1729247973236,0.000828,67954.0,67945.0,0.57240199]
[1729247973465,0.000828,67954.0,67945.0,0.47681542]
[1729247973733,0.000828,67954.0,67953.0,0.30983927]
[1729247973956,0.000828,67954.0,67953.0,0.54439842]
[1729247974391,0.000828,67954.0,67953.0,0.53439842]
[1729247974625,0.000828,67954.0,67953.0,0.54439842]
[1729247975054,0.000828,67954.0,67953.0,0.56339842]
[1729247975461,0.000828,67954.0,67953.0,0.55539842]
[1729247975886,0.000828,67954.0,67953.0,0.56939842]
[1729247976105,0.000828,67954.0,67953.0,0.90358611]
[1729247976358,0.000828,67960.0,67959.0,0.55482627]
[1729247976567,0.000828,67960.0,67959.0,0.7912669]
[1729247976992,0.000828,67960.0,67959.0,0.5412669]
[1729247977413,0.000828,67960.0,67959.0,0.51936871]
[1729247977857,0.000828,67960.0,67959.0,0.45378542]
[1729247978050,0.000828,67960.0,67959.0,0.46778542]
[1729247978465,0.000828,67960.0,67959.0,0.53334022]
[1729247978679,0.000828,67960.0,67959.0,0.48178542]
[1729247979105,0.000828,67960.0,67959.0,0.54734022]
[1729247979345,0.000828,67960.0,67959.0,1.24178542]
[1729247979572,0.000828,67960.0,67959.0,1.30731285]
[1729247979777,0.000828,67960.0,67959.0,1.48081285]
[1729247980007,0.000828,67960.0,67959.0,1.52663727]
[1729247980435,0.000828,67960.0,67959.0,1.52642175]
[1729247980853,0.000828,67960.0,67959.0,1.49842175]
[1729247981070,0.000828,67960.0,67959.0,1.40128542]
[1729247981326,0.000828,67960.0,67959.0,1.41728542]
[1729247981799,0.000828,67960.0,67959.0,1.5263653]
[1729247982023,0.000828,67960.0,67959.0,1.41728542]
[1729247982454,0.000828,67960.0,67959.0,1.50451292]
[1729247982675,0.000828,67960.0,67959.0,1.41728542]
[1729247982883,0.000828,67960.0,67959.0,1.50451291]
[1729247985531,0.000828,67960.0,67959.0,1.41728542]
[1729247986455,0.000828,67960.0,67959.0,1.50451291]
[1729247986917,0.000828,67960.0,67959.0,1.49051291]
[1729247987136,0.000828,67960.0,67959.0,1.47651291]
[1729247987352,0.000828,67960.0,67959.0,1.50451291]
[1729247987584,0.000828,67960.0,67959.0,1.50439784]
[1729247987827,0.000828,67960.0,67959.0,1.40328542]
[1729247988049,0.000828,67960.0,67959.0,1.41728542]
[1729247990419,0.000828,67960.0,67959.0,1.50439784]
[1729247990862,0.000828,67960.0,67959.0,1.50239784]
[1729247991300,0.000828,67960.0,67959.0,1.41528542]
[1729247991540,0.000828,67960.0,67959.0,1.2075259]
[1729247991753,0.000828,67960.0,67959.0,1.38757245]
[1729247992416,0.000828,67960.0,67959.0,1.38957245]
[1729247992628,0.000828,67960.0,67959.0,1.32228542]
[1729247992846,0.000828,67960.0,67959.0,1.38757289]
[1729247993059,0.000828,67960.0,67959.0,1.32228542]
[1729247994574,0.000828,67960.0,67959.0,1.40939784]
[1729247994794,0.000828,67960.0,67959.0,1.21413832]
[1729247995004,0.000828,67960.0,67959.0,1.30708151]
[1729247995214,0.000828,67960.0,67959.0,1.24178542]
[1729247995435,0.000828,67960.0,67959.0,1.30708151]
[1729247995630,0.000828,67960.0,67959.0,1.24178542]
[1729247996445,0.000828,67960.0,67959.0,1.30708151]
[1729247996802,0.025828,67971.0,67970.0,0.01491975]
[1729247997042,0.025828,67971.0,67970.0,0.3110019]
[1729247998117,0.271849,67971.0,67970.0,0.1778789]
[1729247998336,0.351849,67971.0,67970.0,0.1778789]
[1729247999618,0.351849,67971.0,67970.0,0.1918789]
[1729247999836,0.351849,67971.0,67970.0,0.1778789]
[1729248000048,0.351849,67971.0,67970.0,0.1638789]
[1729248000269,0.351849,67971.0,67970.0,0.1728789]
[1729248000499,0.351849,67971.0,67970.0,0.1778789]
[1729248000921,0.351849,67971.0,67970.0,0.1718789]
[1729248001384,0.351849,67971.0,67970.0,0.1768789]
[1729248001879,0.351849,67971.0,67970.0,0.1718789]
[1729248002115,0.204728,67971.0,67970.0,0.1718789]
[1729248002344,0.351849,67971.0,67970.0,0.1768789]
[1729248003991,0.204728,67971.0,67970.0,0.1768789]
[1729248005198,0.351849,67971.0,67970.0,0.1768789]
[1729248005910,0.204728,67971.0,67970.0,0.18733713]
[1729248007348,0.351849,67971.0,67970.0,0.18733713]
[1729248008544,0.204728,67971.0,67970.0,0.18733713]
[1729248009000,0.351849,67971.0,67970.0,0.18733713]
[1729248010152,0.351849,67971.0,67970.0,0.17733713]
[1729248010388,0.56072212,67971.0,67970.0,0.02345823]
[1729248010618,0.46660852,67971.0,67970.0,0.02345823]
[1729248011322,0.46660852,67971.0,67970.0,0.01845823]
[1729248011768,0.46660852,67971.0,67970.0,0.02011223]
[1729248012480,0.46660852,67971.0,67970.0,0.01211223]
[1729248012706,0.46743552,67971.0,67970.0,0.01311223]
[1729248016057,0.58219504,67971.0,67970.0,0.01311223]
[1729248016290,0.68219504,67971.0,67970.0,0.01311223]
[1729248017289,0.65636704,67971.0,67970.0,0.01311223]
[1729248019243,0.65636704,67971.0,67962.0,0.00491975]
[1729248019244,0.227145,67960.0,67959.0,0.051654]
[1729248019460,0.65066404,67960.0,67959.0,0.051654]
[1729248019723,0.53590452,67960.0,67959.0,0.051654]
[1729248019952,0.80107593,67960.0,67959.0,0.001654]
[1729248020402,0.80107593,67960.0,67959.0,0.010654]
[1729248020872,0.423145,67960.0,67959.0,0.001654]
[1729248021350,0.53798477,67960.0,67959.0,0.002654]
[1729248021831,0.53790452,67960.0,67959.0,0.002654]
[1729248022797,0.53598477,67960.0,67959.0,0.002654]
[1729248023051,0.53898477,67960.0,67959.0,0.003654]
[1729248023786,0.53598477,67960.0,67959.0,0.001654]
[1729248024029,0.53698477,67960.0,67959.0,0.002654]
[1729248024270,0.53998477,67960.0,67959.0,0.003654]
[1729248024510,0.53898477,67960.0,67959.0,0.002654]
[1729248024966,0.53998477,67960.0,67959.0,0.003654]
[1729248025730,0.331145,67960.0,67959.0,0.003654]
[1729248025959,0.251145,67960.0,67959.0,0.003654]
[1729248026212,0.151145,67960.0,67959.0,0.003654]
[1729248026444,0.151145,67960.0,67959.0,0.1665329]
[1729248026445,0.148145,67960.0,67959.0,0.1665329]
[1729248026693,0.003,67960.0,67959.0,0.1655329]
[1729248026921,0.002,67960.0,67959.0,0.1655329]
[1729248027148,0.147141,67962.0,67961.0,0.005]
[1729248027463,0.147141,67962.0,67961.0,0.15395915]
[1729248027773,0.147134,67965.0,67964.0,0.005]
[1729248028016,0.147134,67965.0,67964.0,0.15395915]
[1729248029580,0.147134,67965.0,67964.0,0.15995915]
[1729248030217,0.147134,67965.0,67964.0,0.16295915]
[1729248036462,0.147134,67965.0,67964.0,0.16461515]
[1729248044945,0.147134,67965.0,67964.0,0.010656]
[1729248045179,0.239634,67965.0,67964.0,0.010656]
[1729248045389,0.314734,67965.0,67964.0,0.010656]
[1729248048012,0.42939853,67965.0,67964.0,0.010656]
[1729248049704,0.147134,67965.0,67964.0,0.010656]
[1729248050124,0.294255,67969.0,67964.0,0.010656]
[1729248050336,0.294257,67968.0,67964.0,0.010656]
[1729248050512,0.147133,67966.0,67964.0,0.010656]
[1729248050726,0.29426,67967.0,67964.0,0.010656]
[1729248050946,0.147134,67965.0,67964.0,0.010656]
[1729248051371,0.147134,67965.0,67964.0,0.004656]
[1729248051824,0.147134,67965.0,67964.0,0.007656]
[1729248052026,0.147134,67965.0,67964.0,0.004656]
[1729248052222,0.147134,67965.0,67964.0,0.010656]
[1729248052487,0.147134,67965.0,67964.0,0.007656]
[1729248052925,0.147134,67965.0,67964.0,0.010656]
[1729248055458,0.147134,67965.0,67964.0,0.02041562]
[1729248055670,0.147134,67965.0,67964.0,0.02041561]
[1729248056077,0.147134,67965.0,67964.0,0.02041562]
[1729248057782,0.147134,67965.0,67964.0,0.010656]
[1729248058138,0.147134,67965.0,67964.0,0.02041663]
[1729248058556,0.147134,67966.0,67965.0,0.005]
[1729248058755,0.147134,67966.0,67965.0,0.01476063]
[1729248059591,0.147134,67966.0,67965.0,0.01776063]
[1729248061073,0.147134,67966.0,67965.0,0.02276063]
[1729248063340,0.147132,67966.0,67965.0,0.01976045]
[1729248064689,0.147132,67966.0,67965.0,0.02276041]
[1729248068749,0.147132,67966.0,67965.0,0.02276041]
[1729248069228,0.26179653,67966.0,67965.0,0.01776041]
[1729248069451,0.26179653,67966.0,67965.0,0.008]
[1729248069452,0.52819198,67966.0,67965.0,0.008]
[1729248071908,0.43299653,67966.0,67965.0,0.008]
[1729248077363,0.43299653,67966.0,67965.0,0.01776358]
[1729248077597,0.43299653,67966.0,67965.0,0.008]
[1729248078280,0.43299653,67966.0,67965.0,0.05194934]
[1729248079658,0.43299653,67966.0,67965.0,0.01776575]
[1729248080131,0.43299653,67966.0,67965.0,0.05194929]
[1729248080541,0.43299653,67966.0,67965.0,0.008]
[1729248080667,0.43299653,67966.0,67965.0,0.05194944]
[1729248080891,0.43299653,67966.0,67965.0,0.01776567]
[1729248081088,0.43299653,67966.0,67965.0,0.05194611]
[1729248081298,0.43299653,67966.0,67965.0,0.05194638]
[1729248081486,0.43299653,67966.0,67965.0,0.008]
[1729248081707,0.43299653,67966.0,67965.0,0.05194758]
[1729248081708,0.68565308,67966.0,67965.0,0.05194758]
[1729248081939,0.68765308,67966.0,67965.0,0.008]
[1729248082157,0.80231761,67966.0,67965.0,0.008]
[1729248082599,0.68765308,67966.0,67965.0,0.008]
[1729248082814,0.80231761,67966.0,67965.0,0.005]
[1729248083252,0.64876472,67966.0,67965.0,0.008]
[1729248083483,0.76342925,67966.0,67965.0,0.009656]
[1729248083717,0.64876472,67966.0,67965.0,0.009656]
[1729248083960,0.76342925,67966.0,67965.0,0.004656]
[1729248084178,0.64876472,67966.0,67965.0,0.004656]
[1729248084402,0.64876472,67966.0,67965.0,0.006656]
[1729248084650,0.76342925,67966.0,67965.0,0.002656]
[1729248084893,0.65076472,67966.0,67965.0,0.003656]
[1729248085134,0.76542925,67966.0,67965.0,0.003656]
[1729248085599,0.92617628,67966.0,67965.0,0.003656]
[1729248099514,0.92621628,67966.0,67965.0,0.003656]
[1729248102605,0.69688722,67966.0,67965.0,0.003656]
[1729248102841,0.92621628,67966.0,67965.0,0.003656]
[1729248103964,0.58457177,67966.0,67965.0,0.003656]
[1729248104234,0.81390083,67966.0,67965.0,0.003656]
[1729248104460,0.6992363,67966.0,67965.0,0.003656]
[1729248105112,0.81390083,67966.0,67965.0,0.003656]
[1729248106973,0.58257177,67966.0,67965.0,0.003656]
[1729248107212,0.25062474,67966.0,67965.0,0.003656]
[1729248108296,0.24862474,67966.0,67965.0,0.002656]
[1729248108514,0.24862474,67966.0,67965.0,0.001656]
[1729248108756,0.25062474,67966.0,67965.0,0.001656]
[1729248109278,0.36528927,67966.0,67965.0,0.001656]
[1729248109930,0.36528927,67966.0,67965.0,0.002656]
[1729248115317,0.25062474,67966.0,67965.0,0.002656]
[1729248115527,0.36528927,67966.0,67965.0,0.002656]
[1729248117089,0.24925225,67966.0,67965.0,0.002656]
[1729248117309,0.36391678,67966.0,67965.0,0.002656]
[1729248118153,0.36391678,67966.0,67965.0,0.001656]
[1729248118375,0.36191678,67966.0,67965.0,0.001656]
[1729248118818,0.36391678,67966.0,67965.0,0.001656]
[1729248119066,0.47407598,67966.0,67965.0,0.001656]
[1729248119285,0.47344847,67966.0,67965.0,0.001656]
[1729248121321,0.47544847,67966.0,67965.0,0.001656]
[1729248121807,0.47344847,67966.0,67965.0,0.001656]
[1729248122925,0.47544847,67966.0,67965.0,0.001656]
[1729248123146,0.62900136,67966.0,67965.0,0.001656]
[1729248125165,0.590113,67966.0,67965.0,0.001656]
[1729248126274,0.686013,67966.0,67965.0,0.001656]
[1729248126969,0.87386051,67966.0,67965.0,0.001656]
[1729248127197,0.83497215,67966.0,67965.0,0.001656]
[1729248128108,0.83297215,67966.0,67965.0,0.001656]
[1729248128331,0.83497215,67966.0,67965.0,0.002656]
[1729248130142,0.84097215,67966.0,67965.0,0.003656]
[1729248130356,0.24862174,67949.0,67948.0,0.21942817]
[1729248130610,0.25062174,67949.0,67948.0,0.21942817]
[1729248130835,0.36528627,67949.0,67948.0,0.21942817]
[1729248131079,0.24726425,67942.0,67941.0,0.21942817]
[1729248131318,0.394399,67935.0,67934.0,0.04383372]
[1729248131552,0.247201,67934.0,67933.0,0.29802817]
[1729248131776,0.36186553,67934.0,67933.0,0.29802817]
[1729248132021,0.36186553,67934.0,67933.0,0.0786]
[1729248133373,0.42271263,67934.0,67933.0,0.0786]
[1729248134584,0.42371263,67934.0,67933.0,0.0866]
[1729248134796,0.42271263,67934.0,67933.0,0.0786]
[1729248135250,0.42271263,67934.0,67933.0,0.0796]
[1729248136150,0.3080481,67934.0,67933.0,0.0796]
[1729248136399,0.42271263,67934.0,67933.0,0.0796]
[1729248139954,0.42271263,67934.0,67933.0,0.081256]
[1729248141497,0.247201,67934.0,67933.0,0.081256]
[1729248148216,0.242201,67934.0,67933.0,0.081256]
[1729248163708,0.24303,67934.0,67933.0,0.081256]
[1729248165636,0.24303,67934.0,67933.0,0.002656]
[1729248166070,0.35769453,67934.0,67933.0,0.002656]
[1729248166972,0.49903048,67934.0,67933.0,0.002656]
[1729248168062,0.50203048,67934.0,67933.0,0.001656]
[1729248168431,0.50203048,67934.0,67933.0,0.003656]
[1729248168519,0.50203048,67934.0,67933.0,0.001656]
[1729248168731,0.49903048,67934.0,67933.0,0.001656]
[1729248168960,0.51103048,67934.0,67933.0,0.002656]
[1729248169231,0.80394775,67934.0,67933.0,0.002656]
[1729248169470,0.9509069,67934.0,67933.0,0.002656]
[1729248173021,0.9529069,67934.0,67933.0,0.002656]
[1729248173243,0.9509069,67934.0,67933.0,0.002656]
[1729248174177,0.9529069,67934.0,67933.0,0.002656]
[1729248174877,0.9509069,67934.0,67933.0,0.002656]
[1729248175542,0.9529069,67934.0,67933.0,0.002656]
[1729248179267,0.8529069,67934.0,67933.0,0.002656]
[1729248179915,0.9529069,67934.0,67933.0,0.002656]
[1729248181815,0.9529069,67934.0,67930.0,0.001656]
[1729248181816,0.00345274,67931.0,67930.0,0.001656]
[1729248182057,0.00345274,67931.0,67918.0,0.21942817]
[1729248182058,0.24868674,67919.0,67918.0,0.21942817]
[1729248182293,0.36335127,67919.0,67918.0,0.21942817]
[1729248182518,0.24732225,67915.0,67914.0,0.001656]
[1729248182764,0.36198678,67915.0,67914.0,0.001656]
[1729248182989,0.26198678,67915.0,67914.0,0.001656]
[1729248183450,0.36198678,67915.0,67914.0,0.001656]
[1729248183663,0.24732225,67915.0,67914.0,0.001656]
[1729248183883,0.36198678,67915.0,67914.0,0.001656]
[1729248184312,0.36398678,67915.0,67914.0,0.001656]
[1729248188358,0.249242,67915.0,67914.0,0.001656]
[1729248191243,0.24932225,67915.0,67914.0,0.001656]
[1729248191956,0.249242,67915.0,67914.0,0.001656]
[1729248194683,0.24932225,67915.0,67914.0,0.001656]
[1729248197933,0.24932225,67915.0,67914.0,0.002656]
[1729248198159,0.24932225,67915.0,67914.0,0.001656]
[1729248198381,0.24732225,67915.0,67914.0,0.002656]
[1729248198603,0.24832225,67915.0,67914.0,0.002656]
[1729248199038,0.248242,67915.0,67914.0,0.002656]
[1729248199266,0.36198678,67915.0,67914.0,0.002656]
[1729248199488,0.36298678,67915.0,67914.0,0.002656]
[1729248202864,0.248242,67915.0,67914.0,0.002656]
[1729248203079,0.248242,67915.0,67914.0,0.170656]
[1729248203080,0.148242,67915.0,67914.0,0.170656]
[1729248207734,0.148282,67915.0,67914.0,0.170656]
[1729248210674,0.148282,67915.0,67914.0,0.21459198]
[1729248211319,0.00104,67915.0,67914.0,0.21459198]
[1729248211543,0.148282,67915.0,67914.0,0.21459198]
[1729248211763,0.148282,67915.0,67914.0,0.170656]
[1729248212684,0.148282,67915.0,67914.0,0.23655998]
[1729248213094,0.00104,67915.0,67914.0,0.23655998]
[1729248213410,0.148282,67915.0,67914.0,0.23655998]
[1729248214734,0.148282,67915.0,67914.0,0.170656]
[1729248216076,0.148282,67915.0,67914.0,0.170656]
[1729248217669,0.148282,67915.0,67914.0,0.23667187]
[1729248218339,0.00104,67915.0,67914.0,0.23667187]
[1729248218561,0.148282,67915.0,67914.0,0.23667187]
[1729248220154,0.00104,67915.0,67914.0,0.23667187]
[1729248220371,0.148282,67915.0,67914.0,0.23667187]
[1729248224029,0.00104,67915.0,67914.0,0.23667187]
[1729248224260,0.148282,67915.0,67914.0,0.23667187]
[1729248226130,0.148282,67915.0,67914.0,0.23665627]
[1729248227958,0.148282,67915.0,67914.0,0.06865627]
[1729248228884,0.148282,67915.0,67914.0,0.07885542]
[1729248232459,0.148282,67915.0,67914.0,0.01285515]
[1729248234369,0.148282,67915.0,67914.0,0.10085551]
[1729248235887,0.148282,67915.0,67914.0,0.10090622]
[1729248237898,0.00104,67915.0,67914.0,0.10090622]
[1729248238125,0.148282,67915.0,67914.0,0.10090622]
[1729248239244,0.148282,67915.0,67914.0,0.01285515]
[1729248243372,0.148282,67915.0,67914.0,0.12291899]
[1729248244352,0.148282,67915.0,67914.0,0.12299356]
[1729248244980,0.148282,67915.0,67914.0,0.12300446]
[1729248246313,0.148282,67915.0,67914.0,0.01285515]
[1729248300895,0.148282,67915.0,67914.0,0.01161482]
[1729248311482,0.14911,67915.0,67914.0,0.01161482]
[1729248318728,0.14911,67915.0,67914.0,0.02181397]
[1729248318948,0.14911,67915.0,67914.0,0.02081397]
[1729248319159,0.14911,67915.0,67914.0,0.02581397]
[1729248319643,0.14911,67915.0,67914.0,0.02881397]
[1729248320062,0.14911,67915.0,67914.0,0.02581397]
[1729248320492,0.14911,67915.0,67914.0,0.02881397]
[1729248321160,0.14811,67915.0,67914.0,0.02381397]
[1729248321376,0.14911,67915.0,67914.0,0.02881397]
[1729248326295,0.14915,67915.0,67914.0,0.02881397]
[1729248348448,0.001908,67915.0,67914.0,0.6256024]
[1729248348689,0.001908,67915.0,67914.0,0.96357289]
[1729248348921,0.001908,67915.0,67914.0,0.81415806]
[1729248349164,0.001908,67915.0,67914.0,0.9751714]
[1729248349390,0.001908,67915.0,67914.0,0.82836686]
[1729248349864,0.000908,67915.0,67914.0,0.5920378]
[1729248350110,0.000908,67915.0,67914.0,0.5770378]
[1729248350342,0.000908,67915.0,67914.0,0.34798192]
[1729248350577,0.14815,67915.0,67914.0,0.17698192]
[1729248350840,0.14815,67915.0,67914.0,0.18298192]
[1729248350841,0.14915,67915.0,67914.0,0.18298192]
[1729248351073,0.14915,67915.0,67914.0,0.19290167]
[1729248351536,0.002908,67915.0,67914.0,0.20390167]
[1729248352724,0.002908,67915.0,67914.0,0.19398192]
[1729248352974,0.002908,67915.0,67914.0,0.20390167]
[1729248354388,0.002908,67915.0,67914.0,0.20169287]
[1729248354660,0.002908,67915.0,67914.0,0.34893787]
[1729248361562,0.002908,67915.0,67914.0,0.52803787]
[1729248361791,0.002908,67915.0,67914.0,0.6600133]
[1729248362247,0.002908,67915.0,67914.0,0.55103787]
[1729248365307,0.51468317,67929.0,67914.0,0.55103787]
[1729248365308,0.08839866,67957.0,67956.0,0.907154]
[1729248365567,0.000828,67970.0,67958.0,0.19006875]
[1729248365802,0.11549253,67970.0,67965.0,0.01491975]
[1729248366054,0.11549253,67970.0,67965.0,0.05878357]
[1729248366303,0.11549253,67970.0,67965.0,0.05878436]
[1729248366556,0.11549253,67970.0,67965.0,0.01491975]
[1729248366792,0.11470453,67966.0,67965.0,0.01491975]
[1729248368018,4e-05,67966.0,67965.0,0.01491975]
[1729248368260,0.00104,67966.0,67965.0,0.02391975]
[1729248368491,0.00104,67966.0,67965.0,0.03591975]
[1729248369652,0.001868,67966.0,67965.0,0.03591975]
[1729248378553,0.001868,67966.0,67965.0,0.1848789]
[1729248384509,0.001868,67966.0,67965.0,0.33495527]
[1729248384719,0.001868,67966.0,67965.0,0.3320129]
[1729248385140,0.001868,67966.0,67965.0,0.1848789]
[1729248385565,0.001868,67966.0,67965.0,0.3320129]
[1729248385988,0.001868,67966.0,67965.0,0.1848789]
[1729248388190,0.001868,67966.0,67965.0,0.3320129]
[1729248389334,0.001868,67966.0,67965.0,0.1848789]
[1729248393303,0.001868,67966.0,67965.0,0.19458917]
[1729248398902,0.001868,67966.0,67965.0,0.1848789]
[1729248399126,0.001868,67966.0,67965.0,0.19463223]
[1729248403321,0.001868,67966.0,67965.0,0.23825057]
[1729248404435,0.001868,67966.0,67965.0,0.19463223]
[1729248404624,0.001868,67966.0,67965.0,0.26005974]
[1729248404927,0.001868,67966.0,67965.0,0.19463223]
[1729248405628,0.001868,67966.0,67965.0,0.34176623]
[1729248405855,0.001868,67966.0,67965.0,0.45638116]
[1729248406081,0.001868,67966.0,67965.0,0.62321784]
[1729248406513,0.001868,67966.0,67965.0,0.53598026]
[1729248406998,0.001868,67966.0,67965.0,0.52879164]
[1729248408148,0.001868,67966.0,67965.0,0.61631346]
[1729248408368,0.001868,67966.0,67965.0,0.63783749]
[1729248409039,0.001868,67966.0,67965.0,0.64656992]
[1729248409274,0.001868,67966.0,67965.0,0.53752407]
[1729248410211,0.001868,67966.0,67965.0,0.52777164]
[1729248410426,0.001868,67966.0,67965.0,0.53752237]
[1729248412032,0.001868,67966.0,67965.0,0.42290744]
[1729248415142,0.001868,67966.0,67965.0,0.55479381]
[1729248416222,0.001868,67966.0,67965.0,0.42290744]
[1729248416684,0.001868,67966.0,67965.0,0.27577344]
[1729248416887,0.001868,67966.0,67965.0,0.42290744]
[1729248417115,0.001868,67966.0,67965.0,0.41315671]
[1729248417390,0.001868,67966.0,67965.0,0.26602271]
[1729248417629,0.001868,67966.0,67965.0,0.31829756]
[1729248417854,0.149,67966.0,67965.0,0.18642271]
[1729248418221,0.001868,67966.0,67965.0,0.18642271]
[1729248418848,0.149,67966.0,67965.0,0.18642271]
[1729248419454,0.001868,67966.0,67965.0,0.18642271]
[1729248422652,0.000868,67966.0,67965.0,0.17742271]
[1729248422869,0.000868,67966.0,67965.0,0.16542271]
[1729248423098,0.000868,67966.0,67965.0,0.17842271]
[1729248423332,0.000868,67966.0,67965.0,0.32555671]
[1729248423811,0.000868,67966.0,67965.0,0.17842271]
[1729248424031,0.000868,67966.0,67965.0,0.19817125]
[1729248424484,0.000868,67966.0,67965.0,0.18817125]
[1729248424984,0.000868,67966.0,67965.0,0.19817125]
[1729248425663,0.000868,67966.0,67965.0,0.19982525]
[1729248427457,0.000868,67966.0,67965.0,0.18982525]
[1729248427648,0.000868,67966.0,67965.0,0.17682525]
[1729248427870,0.000868,67966.0,67965.0,0.18782525]
[1729248428089,0.000868,67966.0,67965.0,0.20182499]
[1729248428313,0.000868,67966.0,67965.0,0.19082499]
[1729248428586,0.148,67966.0,67965.0,0.03413471]
[1729248428821,0.2296,67966.0,67965.0,0.12209029]
[1729248429048,0.2296,67966.0,67965.0,0.10135869]
[1729248429288,0.2296,67966.0,67965.0,0.03538643]